bitfinex/quotes_ETHUSD_20250605
["timestamp","ask_amount","ask_price","bid_price","bid_amount"]
[1749133079444,3.8727335,2582.2,2581.8,0.9728]
[1749133079643,3.87244097,2582.4,2581.9,19.87310508]
[1749133079889,0.32178912,2582.3,2581.8,0.9728]
[1749133080084,0.32178912,2582.3,2582.0,3.87296233]
[1749133080384,0.32178912,2582.3,2582.0,0.38535838]
[1749133080539,0.32178912,2582.3,2582.1,3.87273988]
[1749133080748,0.32178912,2582.3,2581.8,0.9728]
[1749133080945,0.32178912,2582.3,2581.9,3.87307309]
[1749133081176,4.19431716,2582.3,2581.8,16.9728]
[1749133081386,1.12845805,2582.3,2581.5,0.938]
[1749133081682,3.87304253,2582.0,2581.5,0.938]
[1749133081869,3.87275938,2582.2,2581.7,16.0]
[1749133082055,4.19432494,2582.3,2581.7,3.87339551]
[1749133082386,3.87251674,2582.3,2581.7,16.0]
[1749133082590,3.87253012,2582.3,2581.9,3.87305047]
[1749133082745,1.4796,2582.6,2581.9,16.0]
[1749133083057,3.87328177,2581.8,2581.5,16.938]
[1749133083271,3.87367165,2581.6,2581.2,1.0192]
[1749133083450,1.0096,2581.8,2581.2,1.0192]
[1749133083649,3.87364803,2581.6,2581.2,17.0192]
[1749133083848,3.87349535,2581.7,2581.2,20.89333578]
[1749133084051,3.87349535,2581.7,2581.3,3.8740122]
[1749133084300,1.0096,2581.8,2581.5,16.0]
[1749133084460,4.82716898,2582.2,2581.5,3.87365122]
[1749133084786,3.87296787,2582.0,2581.5,3.87365122]
[1749133085084,3.87303046,2582.0,2581.6,16.0]
[1749133085454,0.55,2582.1,2581.2,1.0192]
[1749133085790,3.87363001,2581.6,2581.2,17.0192]
[1749133085989,3.87349801,2581.7,2581.2,4.89334153]
[1749133086192,3.87349801,2581.7,2581.4,16.0]
[1749133086352,3.87349801,2581.7,2581.3,16.0]
[1749133086554,3.87331396,2581.8,2581.3,19.87393665]
[1749133086748,4.82728328,2582.2,2581.3,19.87393665]
[1749133086749,3.87343912,2581.7,2581.3,16.0]
[1749133087149,3.87328706,2581.8,2581.3,16.0]
[1749133087477,3.87341674,2581.7,2581.3,16.0]
[1749133087648,3.87363334,2581.6,2581.2,1.0192]
[1749133087849,3.87349053,2581.7,2581.3,16.0]
[1749133088276,4.31559574,2581.8,2581.3,16.0]
[1749133088277,3.87357862,2581.6,2581.3,16.0]
[1749133088592,4.86015885,2581.7,2581.1,0.02]
[1749133088890,3.87414809,2581.3,2581.1,0.02]
[1749133089093,3.87383127,2581.5,2581.1,0.02]
[1749133089252,4.86416705,2581.2,2581.1,0.02]
[1749133089854,3.8740722,2581.3,2581.1,0.02]
[1749133090207,0.99,2581.5,2581.1,0.02]
[1749133090700,0.43155957,2581.7,2581.2,19.87407014]
[1749133090863,0.99,2581.8,2581.1,0.02]
[1749133091067,0.99,2581.8,2581.4,16.0]
[1749133091265,3.87364646,2581.6,2581.1,17.0166]
[1749133091466,3.87364646,2581.6,2581.1,0.02]
[1749133091825,3.87416705,2581.2,2581.1,0.02]
[1749133092096,5.66698788,2581.2,2581.1,0.02]
[1749133093414,6.21698788,2581.2,2581.1,0.02]
[1749133094790,3.87342872,2581.7,2581.1,0.02]
[1749133094791,3.87390382,2581.4,2581.1,0.02]
[1749133095106,3.87250829,2582.4,2581.1,0.02]
[1749133095107,0.9371,2581.8,2581.4,3.87385593]
[1749133095266,0.9371,2581.8,2581.2,0.937]
[1749133095267,4.81038085,2581.8,2581.2,0.937]
[1749133095467,3.87351706,2581.7,2581.2,0.937]
[1749133095703,3.87296669,2582.0,2581.2,0.937]
[1749133095905,4.67775245,2582.0,2581.2,0.937]
[1749133096105,4.19540318,2582.0,2581.6,16.0]
[1749133096270,0.32234909,2582.0,2581.2,0.937]
[1749133096464,0.32234909,2582.0,2581.3,16.0]
[1749133096705,0.32234909,2582.0,2581.2,0.937]
[1749133096905,3.87416705,2581.2,2581.1,0.02]
[1749133097535,4.82641669,2581.9,2581.1,0.02]
[1749133097669,3.87393214,2581.4,2581.1,0.02]
[1749133097868,3.87416705,2581.2,2581.1,0.02]
[1749133099806,0.924,2581.3,2581.1,0.02]
[1749133099968,3.87416705,2581.2,2581.1,0.02]
[1749133100169,0.924,2581.3,2581.1,0.02]
[1749133100415,3.87405877,2581.3,2581.1,0.02]
[1749133100784,3.87416705,2581.2,2581.1,0.02]
[1749133100987,1.0215,2581.9,2581.2,0.9686]
[1749133101196,3.87307151,2582.0,2581.3,16.0]
[1749133101407,3.87312367,2581.9,2581.4,3.87375168]
[1749133101625,3.87313562,2581.9,2581.3,3.87400891]
[1749133101924,3.87281669,2582.1,2580.5,8.51887023]
[1749133102077,0.55,2581.8,2580.5,4.2021]
[1749133102275,3.87425358,2581.2,2580.7,3.87476962]
[1749133102503,0.55,2581.5,2580.5,14.829085]
[1749133102675,3.87408218,2581.3,2580.7,3.87491765]
[1749133102871,3.87408218,2581.3,2580.8,3.87468173]
[1749133103100,3.87422419,2581.2,2580.7,3.87482598]
[1749133103302,3.87402151,2581.3,2580.7,3.87482598]
[1749133103646,3.87371683,2581.5,2580.5,15.184498]
[1749133103946,3.87371683,2581.5,2580.4,13.8753479]
[1749133103947,4.42311669,2581.9,2581.2,16.0]
[1749133104145,3.87379053,2581.5,2581.1,16.0]
[1749133104513,3.87363316,2581.6,2581.1,19.87428837]
[1749133104843,3.87372352,2581.5,2581.1,19.87428837]
[1749133105043,3.87364593,2581.6,2581.1,19.95058837]
[1749133105239,3.87349601,2581.7,2581.1,0.0763]
[1749133105543,3.87387284,2581.4,2581.1,0.0763]
[1749133105744,4.26084108,2581.7,2581.2,16.0]
[1749133105917,3.87339365,2581.8,2581.1,3.95050974]
[1749133105918,3.873572,2581.6,2581.1,3.95053401]
[1749133106106,3.87390412,2581.4,2581.2,16.0]
[1749133106307,3.87390412,2581.4,2581.1,0.0763]
[1749133106626,3.87395139,2581.4,2581.1,0.0763]
[1749133106817,3.87367113,2581.6,2581.1,3.95053933]
[1749133107020,3.87334965,2581.8,2581.4,16.0]
[1749133107230,3.873438,2581.7,2581.3,19.8739536]
[1749133107435,3.873438,2581.7,2581.2,19.8740901]
[1749133107636,3.87342313,2581.7,2581.1,0.47135393]
[1749133107958,3.87351912,2581.7,2581.2,3.87410524]
[1749133108117,3.87327736,2581.8,2581.3,16.0]
[1749133108309,1.011,2582.0,2581.3,3.87401598]
[1749133108511,3.87286145,2582.1,2581.5,3.87365282]
[1749133108749,3.87323188,2581.9,2581.5,16.0]
[1749133108910,3.87281669,2582.1,2581.6,3.87351538]
[1749133109112,4.74142738,2582.1,2581.6,0.0763]
[1749133109347,0.86852453,2582.1,2581.7,16.0]
[1749133109548,3.87134638,2583.1,2581.7,16.0]
[1749133109549,4.84985963,2582.5,2581.7,3.87341674]
[1749133109735,0.993,2582.8,2581.7,16.0]
[1749133109916,0.993,2582.8,2582.1,16.0763]
[1749133110110,3.89171913,2582.9,2582.1,0.0763]
[1749133110415,0.50847191,2582.9,2582.1,0.0763]
[1749133110657,3.87273606,2582.2,2581.8,16.0763]
[1749133110929,3.87273606,2582.2,2581.8,3.94955716]
[1749133111123,3.8722293,2582.5,2581.8,0.0763]
[1749133111446,4.86514318,2582.6,2581.9,3.87300035]
[1749133111652,3.87206741,2582.6,2582.2,16.0]
[1749133111955,3.87246758,2582.4,2582.0,16.0]
[1749133112452,3.87191698,2582.7,2581.9,16.38001044]
[1749133112649,2.07947191,2582.9,2582.2,16.0]
[1749133112961,3.87204058,2582.7,2582.1,16.0]
[1749133113144,3.87200296,2582.7,2582.2,3.87259574]
[1749133113310,4.91267007,2582.9,2582.3,16.0]
[1749133113513,3.87191698,2582.7,2581.8,0.0763]
[1749133113743,3.87191698,2582.7,2581.5,0.0763]
[1749133113744,3.87325348,2581.9,2581.5,0.0763]
[1749133113957,3.87309937,2582.0,2581.5,0.0763]
[1749133114135,3.87309937,2582.0,2581.6,16.0]
[1749133114358,3.87300585,2582.0,2581.5,0.0763]
[1749133114665,0.9517,2582.8,2581.5,0.0763]
[1749133114864,3.87291793,2582.1,2581.5,0.0763]
[1749133115070,3.87291793,2582.1,2581.6,19.87350278]
[1749133115214,3.87291793,2582.1,2581.7,16.0]
[1749133115413,3.87255923,2582.3,2581.5,3.94999746]
[1749133115414,3.87354366,2581.7,2581.5,0.0763]
[1749133115615,0.9517,2582.3,2581.5,0.0763]
[1749133115811,0.53741115,2582.2,2581.5,0.0763]
[1749133116064,0.55,2581.9,2581.4,0.39404234]
[1749133116264,0.55,2581.9,2580.7,3.95116191]
[1749133116265,3.8735803,2581.6,2580.7,3.95116191]
[1749133116489,4.83860484,2581.8,2580.4,0.0763]
[1749133116490,3.87476751,2580.8,2580.4,0.0763]
[1749133116616,3.87468761,2580.9,2580.7,0.38518093]
[1749133116818,0.55,2581.4,2580.4,3.95154314]
[1749133116819,3.87459992,2581.0,2580.4,3.95154314]
[1749133117117,3.87416363,2581.3,2580.6,3.87503132]
[1749133117438,3.87408889,2581.3,2580.9,16.0]
[1749133117613,0.55,2581.4,2580.4,0.0763]
[1749133117815,5.41131765,2580.7,2580.6,0.38483267]
[1749133118253,5.41131765,2580.7,2579.6,0.0763]
[1749133118254,3.87566855,2580.2,2579.6,0.0763]
[1749133118917,4.42555998,2580.3,2579.7,4.25489651]
[1749133119120,4.42555121,2580.3,2579.7,4.25489651]
[1749133119425,3.87717121,2579.2,2579.1,0.02]
[1749133120458,4.42717121,2579.2,2579.1,0.02]
[1749133120616,4.8627246,2578.3,2578.2,9.91082645]
[1749133120953,4.8627246,2578.3,2575.9,1.99741014]
[1749133120954,4.42867504,2578.2,2576.6,0.9437]
[1749133121356,13.09754527,2578.2,2576.6,0.9437]
[1749133121516,6.66412027,2578.2,2576.6,1.32769714]
[1749133121715,7.56532027,2578.2,2576.6,1.32769714]
[1749133121919,5.47987504,2578.2,2577.2,3.88007357]
[1749133122230,5.47987504,2578.2,2576.3,12.0]
[1749133122231,16.0,2578.1,2576.3,12.0]
[1749133122437,30.0,2576.3,2576.0,0.005]
[1749133122663,30.0,2576.3,2573.5,3.07495438]
[1749133122664,0.20185449,2574.2,2572.6,1.53417437]
[1749133122822,0.20185449,2574.2,2570.2,4.91992701]
[1749133122823,40.0,2573.0,2569.9,8.51887023]
[1749133123019,16.0,2570.8,2569.0,16.75778691]
[1749133123360,30.0,2572.7,2569.3,8.63200814]
[1749133123361,0.7282,2570.5,2569.3,8.63200814]
[1749133123518,3.88847843,2571.7,2569.2,5.75237]
[1749133123713,3.88832724,2571.8,2569.4,0.359579]
[1749133123966,16.0,2571.3,2569.4,0.359579]
[1749133124206,0.44772395,2571.8,2569.4,0.359579]
[1749133124207,3.89121351,2569.9,2569.4,0.359579]
[1749133124492,0.55,2572.0,2569.4,0.359579]
[1749133124647,8.63200814,2570.2,2569.4,0.359579]
[1749133124990,3.8907478,2570.2,2569.4,0.359579]
[1749133125284,3.89180774,2569.5,2569.4,0.359579]
[1749133125427,3.79955827,2569.5,2569.4,0.359579]
[1749133125633,4.56866859,2569.5,2569.4,0.359579]
[1749133125860,3.79955827,2569.5,2569.4,0.359579]
[1749133126384,3.79955827,2569.5,2569.0,16.75778691]
[1749133126385,46.0,2569.1,2569.0,16.75778691]
[1749133126677,3.89377774,2568.2,2568.1,0.02]
[1749133126969,4.21612683,2568.2,2568.1,0.02]
[1749133127171,14.23959813,2568.2,2568.1,0.02]
[1749133127355,3.89605329,2566.7,2566.1,0.02]
[1749133127685,0.2,2570.0,2566.5,0.8846]
[1749133127904,3.89787565,2565.5,2565.4,0.016]
[1749133128031,3.89562131,2567.0,2565.4,10.016]
[1749133128236,3.89271672,2568.9,2565.9,30.0]
[1749133128464,3.89184671,2569.5,2566.7,30.0]
[1749133128465,3.89478555,2567.6,2566.7,30.0]
[1749133128641,3.89520662,2567.3,2566.4,10.03839171]
[1749133128841,10.03839171,2569.5,2566.3,16.0]
[1749133129055,1.99919862,2571.4,2565.4,0.016]
[1749133129056,0.60768442,2569.2,2566.4,2.448889]
[1749133129275,0.60768442,2569.2,2565.4,0.016]
[1749133129276,0.60768442,2569.2,2566.6,27.86670408]
[1749133129570,0.54,2569.9,2567.1,16.0]
[1749133129787,0.02,2568.9,2567.4,14.789866]
[1749133129928,0.09473568,2568.8,2565.9,30.0]
[1749133130128,0.02,2567.9,2566.1,3.89693603]
[1749133130335,0.09586806,2567.8,2566.6,16.0]
[1749133130560,0.07737273,2567.8,2567.1,2.216459]
[1749133130868,0.07633282,2567.7,2567.3,20.334864]
[1749133131086,0.32111901,2567.6,2567.5,37.833304]
[1749133131244,0.02,2568.9,2567.5,37.833304]
[1749133131245,0.02,2568.9,2567.7,14.696139]
[1749133131447,3.91276677,2568.9,2567.8,18.38886897]
[1749133131642,3.91276677,2568.9,2567.8,2.38886897]
[1749133131643,3.8934884,2568.4,2567.8,2.38886897]
[1749133131843,3.89365541,2568.3,2567.7,16.0]
[1749133132171,0.02,2568.9,2567.8,0.9077]
[1749133132530,0.02,2568.9,2568.0,16.0]
[1749133132732,0.02,2568.9,2568.3,30.0]
[1749133132974,0.02,2568.9,2568.6,16.0]
[1749133133171,3.88989962,2570.8,2568.9,14.269987]
[1749133133400,3.88989962,2570.8,2569.0,7.686427]
[1749133133586,0.02,2570.9,2569.0,7.686427]
[1749133133587,0.02,2570.9,2569.4,10.01593431]
[1749133133757,0.02,2570.9,2569.7,19.210043]
[1749133133962,0.02,2570.9,2569.9,2.045356]
[1749133134273,0.02,2570.9,2570.1,6.940772]
[1749133134471,0.02,2570.9,2569.0,20.356102]
[1749133134783,0.02,2570.9,2569.8,16.0]
[1749133134991,0.02,2570.9,2570.1,2.003888]
[1749133135175,3.90970274,2570.9,2569.9,16.0]
[1749133135381,3.89015022,2570.6,2570.1,16.0]
[1749133135564,3.89047506,2570.4,2570.1,16.0]
[1749133135881,0.02,2570.9,2570.1,15.88287]
[1749133136083,3.890258,2570.6,2570.1,15.88287]
[1749133136286,0.02,2570.9,2570.0,2.52168816]
[1749133136483,0.02,2570.9,2569.9,30.0]
[1749133136803,0.02,2570.9,2569.6,30.0]
[1749133137012,0.02,2570.9,2569.7,30.32485605]
[1749133137160,0.02,2570.9,2569.9,30.0]
[1749133137361,3.90970523,2570.9,2570.1,22.891387]
[1749133137561,3.88983973,2570.8,2570.2,2.64641336]
[1749133137885,3.88983973,2570.8,2569.6,3.89154504]
[1749133137886,0.02,2570.9,2570.5,26.0]
[1749133138088,0.02,2570.9,2570.7,16.0]
[1749133138462,3.9082182,2571.9,2570.9,34.378363]
[1749133138688,3.88843005,2571.8,2570.9,16.0]
[1749133138875,0.02,2571.9,2570.8,10.8892]
[1749133138876,0.02,2571.9,2570.8,0.8892]
[1749133139067,3.88873928,2571.6,2570.9,17.68892]
[1749133139399,3.88953714,2571.0,2570.9,17.68892]
[1749133139603,0.02,2571.9,2570.9,16.0]
[1749133139901,3.88832724,2571.8,2570.9,16.0]
[1749133140101,3.88894311,2571.4,2570.9,16.0]
[1749133140278,3.8885439,2571.7,2570.9,16.0]
[1749133140598,0.02,2571.9,2570.9,16.0]
[1749133140804,3.88968843,2570.9,2570.8,0.8892]
[1749133141111,3.89044506,2570.4,2570.3,0.51]
[1749133141425,0.02,2571.9,2570.1,33.89075121]
[1749133141570,0.02,2571.9,2570.0,0.8762]
[1749133141571,0.02,2571.9,2571.0,35.83391266]
[1749133141774,0.02,2571.9,2570.9,10.00437103]
[1749133141775,0.02,2571.9,2570.3,16.0]
[1749133142015,0.02,2571.9,2570.8,19.88978389]
[1749133142212,0.02,2571.9,2571.1,2.002499]
[1749133142371,3.90822664,2571.9,2568.4,10.0]
[1749133142572,3.88847843,2571.7,2569.2,10.00437103]
[1749133142817,0.01816402,2571.1,2569.8,10.0]
[1749133143020,3.88953714,2571.0,2569.7,10.0]
[1749133143232,3.89045707,2570.4,2569.4,0.9323]
[1749133143441,3.89061178,2570.3,2569.5,0.32488134]
[1749133143594,0.01816402,2571.1,2569.5,0.32488134]
[1749133144236,3.88988519,2570.8,2569.6,2.752]
[1749133144411,3.89044506,2570.4,2569.6,0.32486869]
[1749133144607,3.89150484,2569.7,2569.6,0.32486869]
[1749133145457,0.3625,2570.3,2569.6,0.32486869]
[1749133145947,4.27904535,2570.7,2569.6,0.32486869]
[1749133146113,16.3625,2570.9,2569.6,0.32486869]
[1749133146114,4.25221977,2570.9,2569.7,16.0]
[1749133146311,0.01816402,2571.1,2569.6,1.26286869]
[1749133146539,0.01816402,2571.1,2570.2,16.0]
[1749133146840,0.01816402,2571.1,2569.6,1.26286869]
[1749133147157,3.88953714,2571.0,2569.6,0.938]
[1749133147311,3.88999105,2570.7,2569.6,0.938]
[1749133147517,0.94077012,2570.9,2569.6,0.938]
[1749133147518,3.89055907,2570.4,2569.6,4.82955664]
[1749133147700,4.28056097,2570.9,2569.6,0.938]
[1749133147896,0.39077012,2570.9,2569.6,0.938]
[1749133148139,3.89084539,2570.2,2569.6,0.938]
[1749133148372,3.88983973,2570.8,2569.6,0.938]
[1749133148675,3.89031562,2570.5,2569.9,16.0]
[1749133148830,4.31806018,2570.7,2569.6,0.938]
[1749133148831,0.42806098,2570.7,2569.6,0.938]
[1749133149036,4.25124931,2571.6,2569.8,16.0]
[1749133149037,0.55,2571.5,2569.8,16.0]
[1749133149343,3.88957812,2571.0,2569.7,0.55]
[1749133149562,3.89005489,2570.7,2570.0,16.0]
[1749133149761,4.25120819,2571.6,2569.7,1.06]
[1749133149762,3.88923459,2571.2,2569.7,0.51]
[1749133150100,10.00437103,2570.5,2569.1,0.02]
[1749133150265,3.89226218,2569.2,2569.1,0.02]
[1749133150651,4.25476218,2569.2,2569.1,0.02]
[1749133150868,4.25476218,2569.2,2568.1,0.02]
[1749133150869,3.89377774,2568.2,2568.1,0.02]
[1749133151081,3.89529448,2567.2,2566.7,0.21633786]
[1749133151287,3.89529448,2567.2,2567.1,0.34518507]
[1749133151588,3.8968124,2566.2,2566.1,0.02]
[1749133152754,0.79836012,2567.1,2566.1,0.02]
[1749133152755,0.3625,2567.1,2566.1,0.02]
[1749133153363,3.8968124,2566.2,2566.1,0.02]
[1749133153565,3.89628436,2566.6,2566.1,0.02]
[1749133153899,0.60853748,2566.9,2566.1,0.02]
[1749133153900,3.8968124,2566.2,2566.1,0.02]
[1749133154100,0.60853748,2566.9,2566.1,0.02]
[1749133154568,0.60353748,2566.9,2566.1,0.02]
[1749133154768,0.60353748,2566.9,2566.1,3.91684263]
[1749133155114,0.60353748,2566.9,2566.1,0.02]
[1749133155598,0.60353748,2566.9,2566.4,3.89638828]
[1749133155893,0.60353748,2566.9,2566.2,16.0]
[1749133156076,0.60353748,2566.9,2566.3,16.0]
[1749133156276,3.8968124,2566.2,2566.1,0.02]
[1749133156585,0.60353748,2566.9,2566.1,0.02]
[1749133157094,3.89526417,2567.3,2566.1,0.02]
[1749133157391,4.32950677,2568.3,2566.4,16.0]
[1749133157392,3.89377774,2568.2,2566.4,16.0]
[1749133157620,3.89387503,2568.2,2567.3,3.89500266]
[1749133157792,0.7326,2568.3,2567.5,3.89471463]
[1749133157976,3.89367038,2568.3,2567.5,3.89483486]
[1749133158156,3.89556203,2567.1,2565.4,3.91393757]
[1749133158358,0.35050327,2568.0,2566.2,4.77589]
[1749133158558,0.7326,2568.1,2566.2,16.0]
[1749133158753,3.89493721,2567.5,2566.1,0.02]
[1749133159001,3.89483933,2567.5,2566.1,0.02]
[1749133159204,1.38992104,2567.4,2566.1,0.02]
[1749133159497,0.7326,2568.1,2566.1,0.02]
[1749133159713,0.7326,2568.1,2566.1,0.53]
[1749133159899,3.89570865,2567.0,2566.3,3.8965567]
[1749133160096,3.89488018,2567.5,2566.8,3.8958709]
[1749133160297,3.89408099,2568.0,2566.1,0.53]
[1749133160298,3.89408099,2568.0,2566.7,3.89602019]
[1749133160506,3.89453596,2567.7,2566.1,0.53]
[1749133160791,3.89450467,2567.8,2566.1,10.02437103]
[1749133160966,0.38936704,2568.3,2566.7,16.0]
[1749133161165,0.7326,2568.7,2567.2,16.0]
[1749133161415,0.7326,2568.7,2567.3,0.35719939]
[1749133161568,0.7326,2568.7,2566.3,1.5775]
[1749133161569,0.7326,2568.7,2567.4,0.35719939]
[1749133161775,4.62564482,2568.7,2566.3,17.5775]
[1749133161993,3.89371666,2568.3,2566.8,3.89590151]
[1749133162207,3.89379644,2568.2,2567.1,19.89536357]
[1749133162368,3.89418134,2568.0,2567.2,0.35735493]
[1749133162569,3.89439358,2567.8,2567.3,16.0]
[1749133162792,0.7326,2568.7,2567.0,16.0]
[1749133162993,0.7326,2567.4,2565.7,1.0075]
[1749133163212,0.7326,2567.4,2566.2,0.35729111]
[1749133163213,3.89556919,2567.1,2566.2,0.35729111]
[1749133163415,3.89574973,2566.9,2565.4,3.91401911]
[1749133163616,4.6294124,2566.2,2565.4,0.016]
[1749133163920,3.8998518,2564.2,2562.7,0.22087724]
[1749133164120,3.8998518,2564.2,2562.4,1.91208393]
[1749133164121,4.4498518,2564.2,2562.5,0.9776]
[1749133164278,4.4498518,2564.2,2562.4,1.91208393]
[1749133164279,4.45030812,2563.9,2562.4,1.91208393]
[1749133164472,3.90030812,2563.9,2562.4,1.91208393]
[1749133164672,3.90030812,2563.9,2562.8,1.0005]
[1749133164904,1.2626,2564.6,2562.4,6.81507109]
[1749133165106,3.90023348,2564.0,2563.2,3.90134971]
[1749133165308,3.90030812,2563.9,2562.4,2.91258393]
[1749133165527,0.7126,2564.6,2562.4,2.91258393]
[1749133165820,3.90030812,2563.9,2562.4,1.91208393]
[1749133166193,4.61290812,2563.9,2562.4,1.91208393]
[1749133166875,4.61290812,2563.9,2562.2,3.90278933]
[1749133167098,4.61190446,2564.6,2563.1,3.92149057]
[1749133167375,3.90030812,2563.9,2563.8,2.16111283]
[1749133167719,3.89954765,2564.4,2563.1,0.02]
[1749133167720,3.90137328,2563.2,2563.1,0.02]
[1749133167927,0.39003081,2563.8,2563.1,0.02]
[1749133168288,3.90038207,2563.9,2563.1,0.02]
[1749133168624,3.90137328,2563.2,2563.1,0.02]
[1749133168790,3.89954765,2564.4,2563.1,0.00528481]
[1749133169119,3.90137328,2563.2,2563.1,0.00528481]
[1749133169323,3.8974199,2565.8,2563.1,0.00528481]
[1749133169490,3.90132282,2563.3,2563.1,0.00528481]
[1749133169689,3.90137328,2563.2,2563.1,0.00528481]
[1749133170116,3.90137328,2563.2,2563.1,0.03945879]
[1749133170520,3.90047368,2563.8,2563.1,0.03945879]
[1749133170673,3.95966092,2564.7,2563.0,0.91125879]
[1749133170896,3.95966092,2564.7,2563.2,0.03782602]
[1749133170897,3.89969972,2564.3,2563.2,0.03782602]
[1749133171095,3.89939559,2564.5,2563.2,0.03782602]
[1749133171512,0.39596609,2564.6,2563.2,0.03782602]
[1749133171718,3.89871701,2565.0,2563.2,0.03782602]
[1749133171965,3.89842301,2565.2,2563.7,10.06881075]
[1749133172247,0.39174199,2565.7,2563.7,3.90061239]
[1749133172409,3.91727178,2565.9,2564.1,16.0]
[1749133172612,0.02,2565.9,2564.7,16.0]
[1749133172836,0.02,2565.9,2564.5,16.0]
[1749133172999,0.02,2565.9,2564.6,0.35474305]
[1749133173199,0.02,2566.9,2565.6,10.06881075]
[1749133173468,0.02,2566.9,2565.8,16.0]
[1749133173640,0.02,2566.9,2565.9,0.9581]
[1749133173952,0.02,2566.9,2566.0,5.22328542]
[1749133174155,0.02,2566.9,2566.3,16.0]
[1749133174356,0.02,2566.9,2566.4,0.35472771]
[1749133174498,0.02,2566.9,2566.8,4.90240151]
[1749133174850,0.02,2566.9,2566.8,22.13697504]
[1749133175001,0.02,2566.9,2566.8,22.1373391]
[1749133175354,0.02,2566.9,2566.8,17.0065]
[1749133175499,0.02,2566.9,2566.8,20.90240151]
[1749133176014,0.02,2566.9,2566.8,17.0065]
[1749133176202,0.02,2566.9,2566.8,20.90240151]
[1749133177239,0.02,2567.9,2567.6,3.89453845]
[1749133177446,0.02,2567.9,2566.8,1.0065]
[1749133177734,0.02,2567.9,2567.0,0.55]
[1749133177938,0.02,2567.9,2567.5,0.55]
[1749133178155,0.02,2567.9,2567.6,3.89465558]
[1749133178300,0.02,2567.9,2567.8,0.55]
[1749133178500,0.02,2567.9,2567.8,20.80060359]
[1749133178708,0.02,2567.9,2567.8,21.77146597]
[1749133179016,1.56089722,2568.6,2568.5,0.55]
[1749133179352,1.56089722,2568.6,2567.9,0.55]
[1749133179640,1.56089722,2568.6,2567.8,19.53750004]
[1749133179641,1.56089722,2568.6,2567.8,0.9709]
[1749133179797,3.89408099,2568.0,2567.9,0.35818005]
[1749133180001,3.89403784,2568.1,2567.9,0.35818592]
[1749133180199,3.89337425,2568.5,2567.4,0.55]
[1749133180423,3.89337425,2568.5,2567.3,1.4969]
[1749133180424,3.89347453,2568.4,2567.5,0.35819272]
[1749133180736,1.55230822,2568.5,2567.3,17.48365633]
[1749133181040,3.89396507,2568.1,2567.5,0.55]
[1749133181210,10.06881075,2568.4,2567.3,1.48365633]
[1749133181411,11.62970797,2568.6,2567.5,16.0]
[1749133181611,1.56089722,2568.6,2567.9,3.89410336]
[1749133181796,1.56089722,2568.6,2568.0,0.9081428]
[1749133182001,1.56089722,2568.6,2568.1,4.25176201]
[1749133182250,1.56089722,2568.6,2567.8,19.89435396]
[1749133182251,1.56089722,2568.6,2568.3,3.89362613]
[1749133182452,1.56089722,2568.6,2568.2,3.8936277]
[1749133182761,0.01191741,2568.3,2567.7,10.0]
[1749133183064,0.01191741,2568.3,2568.0,3.89398746]
[1749133183248,0.01191741,2568.3,2567.8,5.25218041]
[1749133183249,0.01191741,2568.3,2568.1,0.35790876]
[1749133183419,0.01191741,2568.3,2568.0,3.89403701]
[1749133183620,0.01191741,2568.3,2567.6,3.89455921]
[1749133183621,0.01191741,2568.3,2567.6,3.89468764]
[1749133183815,0.01191741,2568.3,2567.4,3.391613]
[1749133184016,0.01191741,2568.3,2567.7,3.89450811]
[1749133184243,0.01191741,2568.3,2567.2,0.13345248]
[1749133184444,0.01191741,2568.3,2567.8,3.89425199]
[1749133184658,0.01191741,2568.3,2568.1,0.55]
[1749133184819,1.37281463,2568.6,2568.1,0.55]
[1749133185021,3.89392827,2568.2,2567.5,0.51]
[1749133185321,3.89385872,2568.2,2567.5,0.51]
[1749133185832,1.37281463,2568.6,2567.2,0.38293879]
[1749133185833,1.37281463,2568.6,2567.3,14.354959]
[1749133186152,1.37281463,2568.6,2567.2,0.38293879]
[1749133186462,3.89491811,2567.5,2566.7,18.550374]
[1749133186617,6.25257834,2568.6,2566.7,18.550374]
[1749133186618,3.89377774,2568.2,2567.0,3.89557124]
[1749133186822,3.89429331,2567.9,2567.3,3.89509005]
[1749133187057,3.89364462,2568.3,2567.1,4.89190242]
[1749133187229,12.42812538,2568.6,2567.5,0.55]
[1749133187571,3.89425965,2567.9,2566.9,3.23240478]
[1749133187717,3.89446787,2567.8,2566.8,3.89590151]
[1749133187920,14.06023608,2568.6,2567.5,3.89481492]
[1749133188119,3.89402622,2568.1,2567.5,3.89481492]
[1749133188328,14.06023608,2568.6,2567.1,16.0]
[1749133188528,7.28516828,2568.4,2567.2,2.031833]
[1749133188758,3.89400204,2568.1,2567.5,3.89483522]
[1749133189174,3.89373693,2568.3,2567.2,2.031833]
[1749133189468,3.89403893,2568.1,2567.4,3.89499104]
[1749133189674,1.40602361,2568.5,2567.5,3.89477547]
[1749133189866,3.89386542,2568.2,2567.6,0.55]
[1749133190023,3.89386542,2568.2,2567.6,4.44461033]
[1749133190223,5.2660058,2568.6,2567.6,0.55]
[1749133190456,3.89386714,2568.2,2567.6,3.89460446]
[1749133190658,3.89392254,2568.2,2567.6,3.89461875]
[1749133190863,3.89434586,2567.9,2567.5,0.55]
[1749133191045,3.89387888,2568.2,2567.5,0.55]
[1749133191250,3.89334721,2568.5,2567.5,0.55]
[1749133191456,3.89387922,2568.2,2567.6,3.89468445]
[1749133191625,3.89402803,2568.1,2567.5,4.44481266]
[1749133191827,0.52661618,2568.5,2567.7,0.55]
[1749133192147,1.37281463,2568.6,2567.6,0.55]
[1749133192333,1.37281463,2568.6,2567.8,16.0]
[1749133192334,3.89370594,2568.3,2567.8,16.0]
[1749133192534,1.37281463,2568.6,2567.9,0.55]
[1749133192739,3.89341267,2568.5,2567.9,0.55]
[1749133192975,5.26606605,2568.6,2568.0,3.89404822]
[1749133193153,1.37281463,2568.6,2567.9,0.55]